bitfinex/quotes_BTCUSD_20250211
["timestamp","ask_amount","ask_price","bid_price","bid_amount"]
[1739243557077,0.00022387,97721.0,97720.0,0.70844257]
[1739243557540,0.00022387,97721.0,97720.0,0.70544257]
[1739243558070,0.00122387,97721.0,97720.0,0.71344257]
[1739243563683,0.00122387,97721.0,97720.0,0.60884257]
[1739243564496,0.00122387,97721.0,97720.0,0.59884257]
[1739243564698,0.00122387,97721.0,97720.0,0.49633892]
[1739243566853,0.00122387,97721.0,97720.0,0.48633892]
[1739243567083,0.00122387,97721.0,97720.0,0.49633892]
[1739243569995,0.00122387,97721.0,97720.0,0.17473892]
[1739243570419,0.00122387,97721.0,97720.0,0.16473892]
[1739243571864,0.00122387,97721.0,97720.0,0.01123992]
[1739243574923,0.00122387,97721.0,97720.0,0.16473892]
[1739243577791,0.00097828,97721.0,97720.0,0.16473892]
[1739243580825,0.00097828,97721.0,97720.0,0.16576214]
[1739243581167,0.00097828,97721.0,97720.0,0.16576209]
[1739243583304,0.00097828,97721.0,97720.0,0.16473892]
[1739243584128,0.00097828,97721.0,97720.0,0.16576206]
[1739243584619,0.00097828,97721.0,97720.0,0.16473892]
[1739243585562,0.00097828,97721.0,97720.0,0.26473892]
[1739243585774,0.00097828,97721.0,97720.0,0.11123992]
[1739243585981,0.01122246,97721.0,97720.0,0.11123992]
[1739243586389,0.00097828,97721.0,97720.0,0.26473892]
[1739243586763,0.01122239,97721.0,97720.0,0.11123992]
[1739243586964,0.00097828,97721.0,97720.0,0.11123992]
[1739243587281,0.00120215,97721.0,97720.0,0.11123992]
[1739243588108,0.00120215,97721.0,97720.0,0.21123992]
[1739243588311,0.05060215,97721.0,97720.0,0.21123992]
[1739243588556,0.14084617,97721.0,97720.0,0.21123992]
[1739243589311,0.13986789,97721.0,97720.0,0.20323992]
[1739243589557,0.14386789,97721.0,97720.0,0.20023992]
[1739243589757,0.14586789,97721.0,97720.0,0.20023992]
[1739243590353,0.14186789,97721.0,97720.0,0.20023992]
[1739243590583,0.13986789,97721.0,97720.0,0.20023992]
[1739243590803,0.15286789,97721.0,97720.0,0.20123992]
[1739243594166,0.14262387,97721.0,97720.0,0.20123992]
[1739243594481,0.15286607,97721.0,97720.0,0.20123992]
[1739243598463,0.15286607,97721.0,97720.0,0.35473892]
[1739243598688,0.07286607,97721.0,97720.0,0.35473892]
[1739243598887,0.06262387,97721.0,97720.0,0.35473892]
[1739243602362,0.01322387,97721.0,97720.0,0.35473892]
[1739243603610,0.00422387,97721.0,97720.0,0.35373892]
[1739243603813,0.00022387,97721.0,97720.0,0.35373892]
[1739243604032,0.00822387,97721.0,97720.0,0.35473892]
[1739243605275,0.00022387,97721.0,97720.0,0.35373892]
[1739243605537,0.01122387,97721.0,97720.0,0.35473892]
[1739243605854,0.00822387,97721.0,97720.0,0.35473892]
[1739243606052,0.00022387,97721.0,97720.0,0.35373892]
[1739243606449,0.01022387,97721.0,97720.0,0.35473892]
[1739243607115,0.00322387,97721.0,97720.0,0.35373892]
[1739243608677,0.01022387,97721.0,97720.0,0.35473892]
[1739243609086,0.00322387,97721.0,97720.0,0.35373892]
[1739243609278,0.00922387,97721.0,97720.0,0.35473892]
[1739243610001,0.00622387,97721.0,97720.0,0.35473892]
[1739243610342,0.00322387,97721.0,97720.0,0.35373892]
[1739243611277,0.00022387,97721.0,97720.0,0.35373892]
[1739243611487,0.00222387,97721.0,97720.0,0.35373892]
[1739243612364,0.00622387,97721.0,97720.0,0.35373892]
[1739243612765,0.00222387,97721.0,97720.0,0.35373892]
[1739243612981,0.00622387,97721.0,97720.0,0.35373892]
[1739243613209,0.00422387,97721.0,97720.0,0.35373892]
[1739243613672,0.00222387,97721.0,97720.0,0.35373892]
[1739243614972,0.00322387,97721.0,97720.0,0.35373892]
[1739243615175,0.00422387,97721.0,97720.0,0.35373892]
[1739243615390,0.00122387,97721.0,97720.0,0.35373892]
[1739243615791,0.00322387,97721.0,97720.0,0.35373892]
[1739243616209,0.00122387,97721.0,97720.0,0.35373892]
[1739243616381,0.00022387,97721.0,97720.0,0.35373892]
[1739243616525,0.00222387,97721.0,97720.0,0.35373892]
[1739243616738,0.00322387,97721.0,97720.0,0.35373892]
[1739243617731,0.00322387,97721.0,97720.0,0.45624257]
[1739243621573,0.00122387,97721.0,97720.0,0.45624257]
[1739243622383,0.00222387,97721.0,97720.0,0.45624257]
[1739243622597,0.00122387,97721.0,97720.0,0.45624257]
[1739243623033,0.00222387,97721.0,97720.0,0.45624257]
[1739243637754,0.00122387,97721.0,97720.0,0.45624257]
[1739243638154,0.00122387,97721.0,97720.0,0.20023992]
[1739243638318,0.08442387,97721.0,97720.0,0.20023992]
[1739243638519,0.09466128,97721.0,97720.0,0.20023992]
[1739243642699,0.01146128,97721.0,97720.0,0.35373892]
[1739243643059,0.00122387,97721.0,97720.0,0.35373892]
[1739243643484,0.00122387,97721.0,97720.0,0.45624257]
[1739243644870,0.00133047,97721.0,97720.0,0.45624257]
[1739243654026,0.00133047,97721.0,97720.0,0.47924257]
[1739243654230,0.00133047,97721.0,97720.0,0.56694257]
[1739243654972,0.0011066,97721.0,97720.0,0.56694257]
[1739243655180,0.0001066,97721.0,97720.0,0.56694257]
[1739243655634,0.0011066,97721.0,97720.0,0.58694257]
[1739243656319,0.0011066,97721.0,97720.0,0.90854257]
[1739243658126,0.0011066,97721.0,97720.0,1.05854257]
[1739243659362,0.0011066,97721.0,97720.0,1.05554257]
[1739243659736,0.0021066,97721.0,97720.0,1.06154257]
[1739243660195,0.0021066,97721.0,97720.0,1.10694257]
[1739243660601,0.0011066,97721.0,97720.0,1.09994257]
[1739243660962,0.0021066,97721.0,97720.0,1.11294257]
[1739243664654,0.0021066,97721.0,97720.0,1.01294257]
[1739243665057,0.0021066,97721.0,97720.0,1.54704257]
[1739243673383,0.0021066,97721.0,97720.0,1.50164257]
[1739243673606,0.0021066,97721.0,97720.0,1.42394257]
[1739243677069,0.0021066,97721.0,97720.0,1.52394257]
[1739243684916,0.0021066,97721.0,97720.0,1.55505607]
[1739243688920,0.00022387,97733.0,97732.0,0.17348]
[1739243689271,0.00022387,97733.0,97732.0,0.30000664]
[1739243689577,0.00022387,97733.0,97732.0,0.29898365]
[1739243690271,0.00122387,97733.0,97732.0,0.31098365]
[1739243690615,0.00122387,97733.0,97732.0,0.31598365]
[1739243691735,0.00122387,97733.0,97732.0,0.33638918]
[1739243691927,0.00122387,97733.0,97732.0,0.32638918]
[1739243692806,0.00122387,97733.0,97732.0,0.34658073]
[1739243694776,0.00122387,97733.0,97732.0,0.66818073]
[1739243696612,0.00122387,97733.0,97732.0,0.69933681]
[1739243696830,0.00122387,97733.0,97732.0,0.66818073]
[1739243697456,0.00122387,97733.0,97732.0,0.69933427]
[1739243697665,0.00122387,97733.0,97732.0,0.66818073]
[1739243699044,0.00122387,97733.0,97732.0,0.81818073]
[1739243699252,0.00122387,97733.0,97732.0,0.84933456]
[1739243700087,0.00122387,97733.0,97732.0,0.81818073]
[1739243704914,0.00122387,97733.0,97732.0,1.38341307]
[1739243705705,0.00022387,97733.0,97732.0,1.37141307]
[1739243705918,0.00022387,97733.0,97732.0,1.46151307]
[1739243706672,0.00022387,97733.0,97732.0,1.46851307]
[1739243708787,0.00022387,97733.0,97732.0,1.38841307]
[1739243710668,0.00022387,97733.0,97732.0,1.36841307]
[1739243710872,0.00022387,97733.0,97732.0,1.32428073]
[1739243711286,0.00022387,97733.0,97732.0,1.34728073]
[1739243715726,0.00022387,97733.0,97732.0,0.81318073]
[1739243728000,0.08222387,97733.0,97732.0,0.7827752]
[1739243728228,0.08222387,97733.0,97732.0,0.6327752]
[1739243728445,0.08222387,97733.0,97732.0,0.6427752]
[1739243729252,0.08222387,97733.0,97732.0,0.6277752]
[1739243729445,0.08222387,97733.0,97732.0,0.6327752]
[1739243729646,0.08222387,97733.0,97732.0,0.6257752]
[1739243730297,0.08222387,97733.0,97732.0,0.6277752]
[1739243730649,0.08222387,97733.0,97732.0,0.6257752]
[1739243730844,0.08222387,97733.0,97732.0,0.6207752]
[1739243731350,0.08222387,97733.0,97732.0,0.6267752]
[1739243731593,0.08222387,97733.0,97732.0,0.6207752]
[1739243731997,0.08222387,97733.0,97732.0,0.6287752]
[1739243732401,0.08222387,97733.0,97732.0,0.6257752]
[1739243732642,0.08222387,97733.0,97732.0,0.6287752]
[1739243733407,0.08222387,97733.0,97732.0,0.6257752]
[1739243733630,0.08222387,97733.0,97732.0,0.6277752]
[1739243734026,0.08222387,97733.0,97732.0,0.6227752]
[1739243734250,0.08222387,97733.0,97732.0,0.6257752]
[1739243734690,0.08222387,97733.0,97732.0,0.60258365]
[1739243735029,0.08222387,97733.0,97732.0,0.60458365]
[1739243735226,0.08222387,97733.0,97732.0,0.58158365]
[1739243735474,0.13132387,97733.0,97732.0,0.47708]
[1739243735649,0.13132387,97733.0,97732.0,0.47508]
[1739243735866,0.13132387,97733.0,97732.0,0.47808]
[1739243736065,0.13132387,97733.0,97732.0,0.48008]
[1739243736849,0.13132387,97733.0,97732.0,0.47808]
[1739243737202,0.13132387,97733.0,97732.0,0.47508]
[1739243737708,0.13132387,97733.0,97732.0,0.3216]
[1739243738750,0.13132387,97733.0,97732.0,0.47508]
[1739243738943,0.13132387,97733.0,97732.0,0.3216]
[1739243739176,0.13132387,97733.0,97732.0,0.47508]
[1739243739554,0.13132387,97733.0,97732.0,0.15348]
[1739243743610,0.0783,97732.0,97731.0,0.153482]
[1739243744010,0.09019829,97732.0,97731.0,0.153482]
[1739243744663,0.09019829,97732.0,97731.0,0.17264728]
[1739243745013,0.0783,97732.0,97731.0,0.17264728]
[1739243746273,0.0783,97732.0,97731.0,0.18267492]
[1739243747481,0.0783,97732.0,97731.0,0.17264728]
[1739243747692,0.0783,97732.0,97731.0,0.01916528]
[1739243748031,0.09019524,97732.0,97731.0,0.01916528]
[1739243759354,0.09030194,97732.0,97731.0,0.01916528]
[1739243760139,0.24378194,97732.0,97731.0,0.01916528]
[1739243762524,0.09030194,97732.0,97731.0,0.01916528]
[1739243763032,0.24378194,97732.0,97731.0,0.01916528]
[1739243763475,0.09030194,97732.0,97731.0,0.01916528]
[1739243764761,0.24378194,97732.0,97731.0,0.01916528]
[1739243765440,0.09030194,97732.0,97731.0,0.01916528]
[1739243766656,0.24378194,97732.0,97731.0,0.01916528]
[1739243768529,0.09030194,97732.0,97731.0,0.01916528]
[1739243771287,0.09030194,97732.0,97731.0,0.17264728]
[1739243771518,0.01200194,97732.0,97731.0,0.17264728]
[1739243771902,0.0001067,97732.0,97731.0,0.17264728]
[1739243774831,0.0001067,97732.0,97731.0,0.18297439]
[1739243777507,0.0001067,97732.0,97731.0,0.01916528]
[1739243778098,0.01199473,97732.0,97731.0,0.17264728]
[1739243778396,0.0001067,97732.0,97731.0,0.17264728]
[1739243779194,0.0001067,97732.0,97731.0,0.01916528]
[1739243779513,0.05529976,97732.0,97731.0,0.01916528]
[1739243779724,0.06718779,97732.0,97731.0,0.01916528]
[1739243780225,0.05899473,97732.0,97731.0,0.01916528]
[1739243781597,0.05899473,97732.0,97731.0,0.02016528]
[1739243781998,0.05899473,97732.0,97731.0,0.01916528]
[1739243782415,0.05899473,97732.0,97731.0,0.02016528]
[1739243795768,0.01199473,97732.0,97731.0,0.02016528]
[1739243795898,0.01199473,97732.0,97731.0,0.17364728]
[1739243796325,0.0001067,97732.0,97731.0,0.17364728]
[1739243796529,0.0001067,97732.0,97731.0,0.17264728]
[1739243796955,0.0001067,97732.0,97731.0,0.17364728]
[1739243797983,0.0001067,97732.0,97731.0,0.17264728]
[1739243798738,0.0001067,97732.0,97731.0,0.18305454]
[1739243808610,0.0001067,97732.0,97731.0,0.17264728]
[1739243820515,0.0001067,97732.0,97731.0,0.27515093]
[1739243828039,0.0001067,97732.0,97731.0,0.29815093]
[1739243829132,0.0001067,97732.0,97731.0,0.53415093]
[1739243829331,0.0001067,97732.0,97731.0,0.54415093]
[1739243830171,0.0001067,97732.0,97731.0,0.57523742]
[1739243830533,0.0001067,97732.0,97731.0,0.57923742]
[1739243830741,0.0001067,97732.0,97731.0,0.57523742]
[1739243830931,0.0001067,97732.0,97731.0,0.62493742]
[1739243831129,0.0001067,97732.0,97731.0,0.62993742]
[1739243832860,0.0001067,97732.0,97731.0,0.64093742]
[1739243833482,0.0001067,97732.0,97731.0,0.63593742]
[1739243833684,7e-07,97732.0,97731.0,1.16403742]
[1739243833980,5.7e-07,97733.0,97732.0,0.47388]
[1739243834196,5.7e-07,97733.0,97732.0,0.60747014]
[1739243835523,5.7e-07,97733.0,97732.0,0.62663542]
[1739243835862,5.7e-07,97733.0,97732.0,0.63163542]
[1739243836998,5.7e-07,97733.0,97732.0,0.64263542]
[1739243837576,5.7e-07,97733.0,97732.0,1.17673542]
[1739243838335,5.7e-07,97733.0,97732.0,1.14564893]
[1739243838849,5.7e-07,97733.0,97732.0,1.12964893]
[1739243839056,5.7e-07,97733.0,97732.0,1.15164893]
[1739243841770,5.7e-07,97733.0,97732.0,1.15187279]
[1739243846822,5.7e-07,97733.0,97732.0,1.01447279]
[1739243847022,5.7e-07,97733.0,97732.0,1.02207279]
[1739243847242,5.7e-07,97733.0,97732.0,0.98907279]
[1739243847648,5.7e-07,97733.0,97732.0,1.01447279]
[1739243847857,5.7e-07,97733.0,97732.0,0.83147279]
[1739243848088,5.7e-07,97733.0,97732.0,0.85447279]
[1739243848292,0.08160057,97733.0,97732.0,0.29737279]
[1739243848696,0.08160057,97733.0,97732.0,0.04138914]
[1739243848853,0.09352406,97733.0,97732.0,0.17986914]
[1739243849268,0.09352406,97733.0,97732.0,0.17286914]
[1739243849668,0.09352406,97733.0,97732.0,0.18486914]
[1739243849867,0.09352406,97733.0,97732.0,0.18086914]
[1739243850039,0.08160057,97733.0,97732.0,0.18086914]
[1739243850422,0.08160057,97733.0,97732.0,0.18386914]
[1739243850940,0.08160057,97733.0,97732.0,0.17586914]
[1739243851156,0.08160057,97733.0,97732.0,0.17986914]
[1739243851564,0.08160057,97733.0,97732.0,0.17686914]
[1739243851765,0.08160057,97733.0,97732.0,0.17886914]
[1739243852279,0.08160057,97733.0,97732.0,0.18904964]
[1739243853772,0.08160057,97733.0,97732.0,0.16988436]
[1739243855995,0.08160057,97733.0,97732.0,0.18898397]
[1739243856800,5.7e-07,97733.0,97732.0,0.31448762]
[1739243857773,5.7e-07,97733.0,97732.0,0.31048762]
[1739243857986,5.7e-07,97733.0,97732.0,0.31448762]
[1739243858193,5.7e-07,97733.0,97732.0,0.31248762]
[1739243858441,5.7e-07,97733.0,97732.0,0.31648762]
[1739243858648,5.7e-07,97733.0,97732.0,0.31248762]
[1739243858809,5.7e-07,97733.0,97732.0,0.32148762]
[1739243859697,5.7e-07,97733.0,97732.0,0.31748762]
[1739243859897,5.7e-07,97733.0,97732.0,0.31948762]
[1739243860093,5.7e-07,97733.0,97732.0,0.31048762]
[1739243860348,5.7e-07,97733.0,97732.0,0.31448762]
[1739243860555,5.7e-07,97733.0,97732.0,0.29538801]
[1739243860983,5.7e-07,97733.0,97732.0,0.29138801]
[1739243861193,5.7e-07,97733.0,97732.0,0.29338801]
[1739243861594,5.7e-07,97733.0,97732.0,0.29538801]
[1739243863940,0.08160057,97733.0,97732.0,0.27238801]
[1739243864140,0.08160057,97733.0,97732.0,0.26220751]
[1739243865106,0.08160057,97733.0,97732.0,0.25820751]
[1739243865341,0.08160057,97733.0,97732.0,0.25620751]
[1739243865579,0.08160057,97733.0,97732.0,0.15770386]
[1739243865781,0.08160057,97733.0,97732.0,0.00622386]
[1739243865978,0.09351295,97733.0,97732.0,0.15970386]
[1739243866117,0.09351295,97733.0,97732.0,0.00622386]
[1739243866805,0.09351295,97733.0,97732.0,0.15970386]
[1739243867477,0.09351295,97733.0,97732.0,0.15370386]
[1739243867683,0.08160057,97733.0,97732.0,0.15370386]
[1739243868127,0.08160057,97733.0,97732.0,0.00022386]
[1739243868624,0.14310037,97733.0,97732.0,0.00022386]
[1739243874129,0.29657937,97733.0,97732.0,0.00022386]
[1739243874609,0.14310037,97733.0,97732.0,0.00022386]
[1739243876441,0.14310037,97733.0,97732.0,0.00122386]
[1739243876785,0.14310037,97733.0,97732.0,0.00022386]
[1739243876975,0.14310037,97733.0,97732.0,0.00122386]
[1739243879964,0.14310037,97733.0,97732.0,0.00022386]
[1739243880378,0.14310037,97733.0,97732.0,0.00122386]
[1739243881007,0.14310037,97733.0,97732.0,0.00022386]
[1739243882742,0.17380294,97733.0,97732.0,0.00022386]
[1739243882893,0.17380294,97733.0,97732.0,0.00122386]
[1739243883325,0.14310037,97733.0,97732.0,0.00022386]
[1739243883729,0.14310037,97733.0,97732.0,0.00122386]
[1739243885524,0.06150037,97733.0,97732.0,0.00022386]
[1739243891782,0.01190037,97733.0,97732.0,0.15370386]
[1739243892255,5.7e-07,97733.0,97732.0,0.15370386]
[1739243894176,5.7e-07,97733.0,97732.0,0.00022386]
[1739243895730,5.7e-07,97733.0,97732.0,0.15370386]
[1739243897413,5.7e-07,97733.0,97732.0,0.00022386]
[1739243903993,5.7e-07,97733.0,97732.0,0.15370386]
[1739243904407,5.7e-07,97733.0,97732.0,0.00022386]
[1739243905330,5.7e-07,97733.0,97732.0,0.15370386]
[1739243905513,5.7e-07,97733.0,97732.0,0.25620751]
[1739243906399,5.7e-07,97733.0,97732.0,0.25720751]
[1739243906725,5.7e-07,97733.0,97732.0,0.00122386]
[1739243907499,5.7e-07,97733.0,97732.0,0.15470386]
[1739243907981,5.7e-07,97733.0,97732.0,0.00122386]
[1739243908164,5.7e-07,97733.0,97732.0,0.00322386]
[1739243908368,5.7e-07,97733.0,97732.0,0.00222386]
[1739243908590,0.01188805,97733.0,97732.0,0.00322386]
[1739243908872,5.7e-07,97733.0,97732.0,0.00322386]
[1739243909105,5.7e-07,97733.0,97732.0,0.00022386]
[1739243911349,5.7e-07,97733.0,97732.0,0.15370386]
[1739243912061,5.7e-07,97733.0,97732.0,0.00022386]
[1739243913147,5.7e-07,97733.0,97732.0,0.15370386]
[1739243914165,5.7e-07,97733.0,97732.0,0.00022386]
[1739243917465,5.7e-07,97733.0,97732.0,0.15370386]
[1739243924492,5.7e-07,97733.0,97732.0,0.25620751]
[1739243925842,5.7e-07,97733.0,97732.0,0.25720751]
[1739243926932,5.7e-07,97733.0,97732.0,0.27067539]
[1739243927550,5.7e-07,97733.0,97732.0,0.26767539]
[1739243927770,5.7e-07,97733.0,97732.0,0.27067539]
[1739243928130,5.7e-07,97733.0,97732.0,0.26967539]
[1739243928452,5.7e-07,97733.0,97732.0,0.27067539]
[1739243937461,5.7e-07,97733.0,97732.0,0.01469174]
[1739243937954,0.01188559,97733.0,97732.0,0.01469174]
[1739243939567,0.01188559,97733.0,97732.0,0.01069174]
[1739243939817,5.7e-07,97733.0,97732.0,0.01069174]
[1739243941215,5.7e-07,97733.0,97732.0,0.16417174]
[1739243943583,5.7e-07,97733.0,97732.0,0.01069174]
[1739243944419,5.7e-07,97733.0,97732.0,0.16417174]
[1739243944643,0.01188054,97733.0,97732.0,0.16417174]
[1739243944869,5.7e-07,97733.0,97732.0,0.01069174]
[1739243945082,0.01188054,97733.0,97732.0,0.01069174]
[1739243945283,5.7e-07,97733.0,97732.0,0.01069174]
[1739243949133,5.7e-07,97733.0,97732.0,0.00022386]
[1739243949551,0.01188054,97733.0,97732.0,0.00022386]
[1739243950672,5.7e-07,97733.0,97732.0,0.00022386]
[1739243951226,5.7e-07,97733.0,97732.0,0.15370386]
[1739243954072,5.7e-07,97733.0,97732.0,0.00022386]
[1739243959155,0.07770057,97733.0,97732.0,0.00022386]
[1739243959324,0.08547063,97733.0,97732.0,0.00022386]
[1739243959530,0.09734297,97733.0,97732.0,0.00022386]
[1739243961190,0.14564297,97733.0,97732.0,0.00022386]
[1739243964408,0.29912197,97733.0,97732.0,0.00022386]
[1739243964555,0.14564297,97733.0,97732.0,0.00022386]
[1739243964923,0.14664297,97733.0,97732.0,0.00022386]
[1739243965767,0.14564297,97733.0,97732.0,0.00022386]
[1739243965971,0.14664297,97733.0,97732.0,0.00022386]
[1739243967218,0.05785498,97733.0,97732.0,0.00022386]
[1739243967661,0.05685498,97733.0,97732.0,0.00022386]
[1739243967870,0.21033398,97733.0,97732.0,0.00022386]
[1739243968088,0.21133398,97733.0,97732.0,0.00022386]
[1739243968328,0.21033398,97733.0,97732.0,0.00022386]
[1739243968573,0.21133398,97733.0,97732.0,0.00122386]
[1739243968846,0.21133398,97733.0,97732.0,0.00022386]
[1739243969252,0.21233398,97733.0,97732.0,0.00122386]
[1739243969463,0.31483763,97733.0,97732.0,0.00122386]
[1739243969709,0.39199743,97733.0,97732.0,0.00122386]
[1739243969935,0.39210403,97733.0,97732.0,0.00122386]
[1739243970107,0.46820403,97733.0,97732.0,0.00122386]
[1739243971287,0.39104423,97733.0,97732.0,0.00122386]
[1739243971691,0.39104423,97733.0,97732.0,0.00022386]
[1739243972171,0.38904423,97733.0,97732.0,0.00122386]
[1739243972398,0.39004423,97733.0,97732.0,0.00122386]
[1739243976312,0.39004423,97733.0,97732.0,0.00022386]
[1739243976573,0.39004423,97733.0,97732.0,0.00122386]
[1739243977271,0.38904423,97733.0,97732.0,0.00122386]
[1739243977509,0.39004423,97733.0,97732.0,0.00122386]
[1739243978251,0.48497505,97733.0,97732.0,0.00122386]
[1739243978747,0.39004423,97733.0,97732.0,0.00122386]
[1739243984709,0.05796158,97733.0,97732.0,0.00122386]
[1739243985340,0.21144058,97733.0,97732.0,0.00122386]
[1739243985565,0.05796158,97733.0,97732.0,0.00122386]
[1739243986406,0.21144058,97733.0,97732.0,0.00122386]
[1739243989623,0.25559974,97733.0,97732.0,0.00122386]
[1739243989824,0.35810339,97733.0,97732.0,0.00122386]
[1739244005223,0.35710339,97733.0,97732.0,0.00122386]
[1739244005651,0.35810339,97733.0,97732.0,0.00122386]
[1739244006211,0.35810339,97733.0,97732.0,0.00022386]
[1739244006510,0.35810339,97733.0,97732.0,0.00122386]
[1739244006942,0.35810339,97733.0,97732.0,0.00022386]
[1739244007393,0.35710339,97733.0,97732.0,0.00122386]
[1739244007745,0.35810339,97733.0,97732.0,0.00122386]
[1739244008971,0.35710339,97733.0,97732.0,0.00122386]
[1739244009381,0.31294423,97733.0,97732.0,0.00122386]
[1739244009723,0.31294423,97733.0,97732.0,0.00022386]
[1739244009925,0.31394423,97733.0,97732.0,0.00022386]
[1739244010111,0.31394423,97733.0,97732.0,0.00122386]
[1739244013514,0.31394423,97733.0,97732.0,0.00022386]
[1739244013794,0.31394423,97733.0,97732.0,0.00122386]
[1739244014668,0.31294423,97733.0,97732.0,0.00122386]
[1739244015073,0.31394423,97733.0,97732.0,0.00122386]
[1739244016044,0.55304181,97733.0,97732.0,0.00122386]
[1739244016255,0.66244406,97733.0,97732.0,0.00122386]
[1739244016991,0.66244406,97733.0,97732.0,0.00022386]
[1739244017376,0.66244406,97733.0,97732.0,0.00122386]
[1739244018100,0.98474406,97733.0,97732.0,0.00122386]
[1739244018319,0.98374406,97733.0,97732.0,0.00122386]
[1739244018648,0.98974406,97733.0,97732.0,0.00222386]
[1739244020889,0.98974406,97733.0,97732.0,0.00122386]
[1739244021317,1.00474406,97733.0,97732.0,0.00222386]
[1739244021457,0.99874406,97733.0,97732.0,0.00122386]
[1739244021660,1.00574406,97733.0,97732.0,0.00222386]
[1739244022091,1.01574406,97733.0,97732.0,0.00222386]
[1739244030625,1.12354406,97733.0,97732.0,0.00222386]
[1739244030992,1.01574406,97733.0,97732.0,0.00222386]
[1739244036767,1.12354406,97733.0,97732.0,0.00222386]
[1739244038635,1.10854406,97733.0,97732.0,0.00122386]
[1739244038811,1.12354406,97733.0,97732.0,0.00122386]
[1739244039018,1.11654406,97733.0,97732.0,0.00022386]
[1739244039387,1.10854406,97733.0,97732.0,0.00022386]
[1739244039621,1.11654406,97733.0,97732.0,0.00022386]
[1739244039933,1.12354406,97733.0,97732.0,0.00022386]
[1739244040337,1.10154406,97733.0,97732.0,0.00022386]
[1739244040473,1.10854406,97733.0,97732.0,0.00022386]
[1739244041128,0.83424648,97733.0,97732.0,0.00022386]
[1739244041743,0.84924648,97733.0,97732.0,0.00022386]
[1739244041916,0.83924648,97733.0,97732.0,0.00022386]
[1739244042139,0.75460126,97733.0,97732.0,0.00022386]
[1739244042337,0.74660126,97733.0,97732.0,0.00022386]
[1739244042596,0.76160126,97733.0,97732.0,0.00022386]
[1739244043058,0.74660126,97733.0,97732.0,0.00022386]
[1739244043303,0.73960126,97733.0,97732.0,0.00022386]
[1739244043464,0.76160126,97733.0,97732.0,0.00022386]
[1739244044859,0.74660126,97733.0,97732.0,0.00022386]
[1739244045057,0.76060126,97733.0,97732.0,0.00022386]
[1739244045265,0.28830126,97733.0,97732.0,0.00022386]
[1739244045476,0.03231861,97733.0,97732.0,0.07772386]
[1739244045727,0.03231861,97733.0,97732.0,0.12762386]
[1739244046146,0.0211066,97733.0,97732.0,0.12762386]
[1739244047358,0.0141066,97733.0,97732.0,0.12762386]
[1739244047539,0.0211066,97733.0,97732.0,0.12762386]
[1739244047739,0.0071066,97733.0,97732.0,0.12762386]
[1739244048121,0.0081066,97733.0,97732.0,0.12862386]
[1739244048527,0.0071066,97733.0,97732.0,0.12762386]
[1739244048746,0.0001066,97733.0,97732.0,0.12762386]
[1739244048972,0.0011066,97733.0,97732.0,0.12862386]
[1739244049798,0.0021066,97733.0,97732.0,0.12862386]
[1739244050804,0.0011066,97733.0,97732.0,0.12762386]
[1739244051231,0.0011066,97733.0,97732.0,0.12862386]
[1739244053649,0.0001066,97733.0,97732.0,0.12862386]
[1739244053850,0.0011066,97733.0,97732.0,0.12862386]
[1739244054383,0.0011066,97733.0,97732.0,0.12762386]
[1739244054997,0.0011066,97733.0,97732.0,0.12862386]
[1739244058178,0.0011066,97733.0,97732.0,0.12762386]
[1739244058381,0.0021066,97733.0,97732.0,0.28210386]
[1739244058641,0.0011066,97733.0,97732.0,0.38460751]
[1739244059367,0.0001066,97733.0,97732.0,0.38360751]
[1739244059826,0.0011066,97733.0,97732.0,0.38460751]
[1739244060001,0.0011066,97733.0,97732.0,0.38660751]
[1739244062877,0.0011066,97733.0,97732.0,0.40477598]
[1739244063081,0.0011066,97733.0,97732.0,0.38660751]
[1739244064206,0.0011066,97733.0,97732.0,0.40960751]
[1739244067937,0.0011066,97733.0,97732.0,0.13062386]
[1739244068139,0.0011066,97733.0,97732.0,0.08072386]
[1739244070240,0.0001066,97733.0,97732.0,0.07972386]
[1739244070626,0.0011066,97733.0,97732.0,0.08072386]
[1739244071032,0.0001066,97733.0,97732.0,0.07972386]
[1739244071448,0.0001066,97733.0,97732.0,0.08072386]
[1739244071449,0.0011066,97733.0,97732.0,0.08072386]
[1739244071651,0.0011066,97733.0,97732.0,0.00322386]
[1739244071869,0.0011066,97733.0,97732.0,0.00222386]
[1739244072073,0.0001066,97733.0,97732.0,0.00222386]
[1739244072277,0.0011066,97733.0,97732.0,0.00322386]
[1739244072637,0.0011066,97733.0,97732.0,0.00122386]
[1739244072856,0.0021066,97733.0,97732.0,0.00122386]
[1739244073275,0.0011066,97733.0,97732.0,0.00122386]
[1739244073492,0.0011066,97733.0,97732.0,0.00022386]
[1739244073493,0.0021066,97733.0,97732.0,0.00022386]
[1739244073693,0.0021066,97733.0,97732.0,0.00122386]
[1739244073902,0.0001066,97733.0,97732.0,0.00122386]
[1739244074122,0.0011066,97733.0,97732.0,0.00122386]
[1739244074356,0.0011066,97733.0,97732.0,0.00022386]
[1739244074605,0.0011066,97733.0,97732.0,0.00122386]
[1739244075061,0.0011066,97733.0,97732.0,0.00022386]
[1739244075497,0.0011066,97733.0,97732.0,0.00122386]
[1739244076220,0.0001066,97733.0,97732.0,0.00122386]
[1739244076442,0.0011066,97733.0,97732.0,0.00122386]
[1739244076636,0.0011066,97733.0,97732.0,0.00022386]
[1739244077339,0.0001066,97733.0,97732.0,0.00122386]
[1739244077776,0.0001066,97733.0,97732.0,0.00022386]
[1739244078001,0.0011066,97733.0,97732.0,0.23742701]
[1739244078231,0.0011066,97733.0,97732.0,0.33890751]
[1739244079544,0.0011066,97733.0,97732.0,0.40990751]
[1739244079762,0.0031066,97733.0,97732.0,0.40990751]
[1739244079977,0.0001066,97733.0,97732.0,0.40890751]
[1739244080400,0.0031066,97733.0,97732.0,0.40890751]
[1739244080606,0.0031066,97733.0,97732.0,1.41460751]
[1739244080817,0.0001066,97733.0,97732.0,1.41460751]
[1739244081095,0.0001066,97733.0,97732.0,1.45763581]
[1739244081303,0.0021066,97733.0,97732.0,1.45663581]
[1739244081512,0.0021066,97733.0,97732.0,1.42560751]
[1739244082761,0.0021066,97733.0,97732.0,1.41760751]
[1739244082997,0.0021066,97733.0,97732.0,1.41560751]
[1739244083398,0.0031066,97733.0,97732.0,1.41760751]
[1739244084312,0.08145022,97771.0,97760.0,0.153436]
[1739244084445,0.08145022,97771.0,97753.0,0.0817]
[1739244084446,0.08145022,97771.0,97758.0,0.153438]
[1739244084649,0.153408,97779.0,97754.0,0.30709865]
[1739244084858,0.07669322,97778.0,97759.0,0.153438]
[1739244085072,0.08793299,97778.0,97759.0,0.153438]
[1739244085337,0.153416,97774.0,97754.0,0.153446]
[1739244085738,0.01123974,97773.0,97754.0,0.153446]
[1739244086114,0.01123974,97773.0,97755.0,0.153444]
[1739244086315,0.16465574,97773.0,97754.0,0.153446]
[1739244086753,0.153418,97772.0,97752.0,0.153449]
[1739244086954,0.01,97771.0,97760.0,0.001]
[1739244087114,0.16342,97771.0,97760.0,0.001]
[1739244087346,0.01123975,97770.0,97760.0,0.001]
[1739244087525,0.03852157,97769.0,97752.0,0.153449]
[1739244087734,0.01123973,97768.0,97754.0,0.001]
[1739244087946,0.1246,97767.0,97754.0,0.001]
[1739244088153,0.1646667,97766.0,97754.0,0.001]